[Event "Titled Tuesday Blitz October 04 Late 2022"]
[White "Bluebaum, Matthias"]
[Black "Bazeev, German"]
[WhiteFideId "24651516"]
[BlackFideId "24119350"]
[WhiteElo "2633"]
[BlackElo "2493"]
[Result "1-0"]
[Round "04"]
[TimeControl "180+1"]
[Date "2022.10.04"]
[WhiteClock "0:02:55"]
[BlackClock "0:01:24"]

1. d4 {[%clk 0:03:00]}  Nf6 {[%clk 0:01:39]} 2. c4 {[%clk 0:02:59]}  e6 {[%clk 0:01:40]} 3. Nc3 {[%clk 0:03:00]}  Bb4 {[%clk 0:01:40]} 4. e3 {[%clk 0:03:00]}  O-O {[%clk 0:01:40]} 5. Bd2 {[%clk 0:03:01]}  Re8 {[%clk 0:01:40]} 6. Nf3 {[%clk 0:03:01]}  b6 {[%clk 0:01:38]} 7. Bd3 {[%clk 0:03:01]}  Bb7 {[%clk 0:01:38]} 8. Qc2 {[%clk 0:03:01]}  d5 {[%clk 0:01:35]} 9. cxd5 {[%clk 0:02:59]}  exd5 {[%clk 0:01:35]} 10. a3 {[%clk 0:02:55]}  Bf8 {[%clk 0:01:27]} 11. Ng5 {[%clk 0:02:55]}  h6 {[%clk 0:01:24]} 12. Bh7+ {[%clk 0:02:55]} 1-0


[Site "https://www.chess.com"]

[Event "Titled Tuesday Blitz October 04 Late 2022"]
[White "Bordi, Kevin"]
[Black "Andreikin, Dmitry"]
[WhiteFideId "621862"]
[BlackFideId "4158814"]
[WhiteElo "2785"]
[BlackElo "2736"]
[Result "1/2-1/2"]
[Round "04"]
[TimeControl "180+1"]
[Date "2022.10.04"]
[WhiteClock "0:00:39"]
[BlackClock "0:01:00"]

1. e4 {[%clk 0:03:00]}  e6 {[%clk 0:02:55]} 2. d4 {[%clk 0:03:00]}  d5 {[%clk 0:02:55]} 3. exd5 {[%clk 0:03:01]}  exd5 {[%clk 0:02:54]} 4. Nf3 {[%clk 0:03:02]}  Nf6 {[%clk 0:02:54]} 5. Bd3 {[%clk 0:03:02]}  c5 {[%clk 0:02:55]} 6. O-O {[%clk 0:03:01]}  c4 {[%clk 0:02:54]} 7. Re1+ {[%clk 0:03:01]}  Be7 {[%clk 0:02:54]} 8. Bf1 {[%clk 0:03:02]}  O-O {[%clk 0:02:54]} 9. b3 {[%clk 0:03:03]}  cxb3 {[%clk 0:02:54]} 10. axb3 {[%clk 0:03:04]}  Nc6 {[%clk 0:02:54]} 11. Ba3 {[%clk 0:02:59]}  Bg4 {[%clk 0:02:49]} 12. Bxe7 {[%clk 0:02:56]}  Nxe7 {[%clk 0:02:49]} 13. Nbd2 {[%clk 0:02:56]}  Nf5 {[%clk 0:02:46]} 14. h3 {[%clk 0:02:54]}  Bxf3 {[%clk 0:02:45]} 15. Nxf3 {[%clk 0:02:55]}  Ne4 {[%clk 0:02:44]} 16. Bd3 {[%clk 0:02:53]}  Re8 {[%clk 0:02:43]} 17. c4 {[%clk 0:02:45]}  g6 {[%clk 0:02:23]} 18. Qc2 {[%clk 0:02:43]}  Nh4 {[%clk 0:01:58]} 19. Bxe4 {[%clk 0:02:03]}  dxe4 {[%clk 0:01:55]} 20. Rxe4 {[%clk 0:02:03]}  Nxf3+ {[%clk 0:01:54]} 21. gxf3 {[%clk 0:02:04]}  Qg5+ {[%clk 0:01:43]} 22. Kh2 {[%clk 0:02:03]}  Qf6 {[%clk 0:01:41]} 23. Rae1 {[%clk 0:01:36]}  Rxe4 {[%clk 0:01:31]} 24. Qxe4 {[%clk 0:01:37]}  a5 {[%clk 0:01:27]} 25. Qxb7 {[%clk 0:01:13]}  Rd8 {[%clk 0:01:27]} 26. Qe4 {[%clk 0:01:13]}  Rxd4 {[%clk 0:01:23]} 27. Qe8+ {[%clk 0:01:11]}  Kg7 {[%clk 0:01:23]} 28. Qe5 {[%clk 0:01:11]}  Qxe5+ {[%clk 0:01:19]} 29. Rxe5 {[%clk 0:01:11]}  a4 {[%clk 0:01:19]} 30. bxa4 {[%clk 0:01:10]}  Rxc4 {[%clk 0:01:19]} 31. a5 {[%clk 0:01:10]}  Ra4 {[%clk 0:01:20]} 32. Rb5 {[%clk 0:01:09]}  h6 {[%clk 0:01:14]} 33. Kg3 {[%clk 0:01:09]}  g5 {[%clk 0:01:15]} 34. Rc5 {[%clk 0:01:07]}  Kg6 {[%clk 0:01:15]} 35. Rb5 {[%clk 0:01:07]}  f5 {[%clk 0:01:13]} 36. Rb6+ {[%clk 0:01:01]}  Kh5 {[%clk 0:01:08]} 37. a6 {[%clk 0:01:01]}  Ra3 {[%clk 0:01:08]} 38. Kg2 {[%clk 0:01:00]}  Ra1 {[%clk 0:01:02]} 39. Rf6 {[%clk 0:01:00]}  Ra3 {[%clk 0:01:00]} 40. Rb6 {[%clk 0:00:39]} 1/2-1/2


[Site "https://www.chess.com"]

[Event "Titled Tuesday Blitz October 04 Late 2022"]
[White "Dimitrov, Atanas"]
[Black "Kollars, Dmitrij"]
[WhiteFideId "2901315"]
[BlackFideId "12909572"]
[WhiteElo "2629"]
[BlackElo "2584"]
[Result "0-1"]
[Round "04"]
[TimeControl "180+1"]
[Date "2022.10.04"]
[WhiteClock "0:00:02"]
[BlackClock "0:01:07"]

1. Nf3 {[%clk 0:03:00]}  d5 {[%clk 0:02:59]} 2. e3 {[%clk 0:02:58]}  c6 {[%clk 0:02:57]} 3. c4 {[%clk 0:02:59]}  Nf6 {[%clk 0:02:57]} 4. Nc3 {[%clk 0:02:59]}  e6 {[%clk 0:02:57]} 5. b3 {[%clk 0:02:59]}  Bd6 {[%clk 0:02:56]} 6. Bb2 {[%clk 0:03:00]}  O-O {[%clk 0:02:56]} 7. d4 {[%clk 0:03:00]}  Nbd7 {[%clk 0:02:53]} 8. Be2 {[%clk 0:02:57]}  e5 {[%clk 0:02:53]} 9. dxe5 {[%clk 0:02:56]}  Nxe5 {[%clk 0:02:52]} 10. cxd5 {[%clk 0:02:55]}  cxd5 {[%clk 0:02:51]} 11. O-O {[%clk 0:02:51]}  Nc6 {[%clk 0:02:48]} 12. Nd4 {[%clk 0:02:47]}  Re8 {[%clk 0:02:44]} 13. Nxc6 {[%clk 0:02:43]}  bxc6 {[%clk 0:02:44]} 14. Rc1 {[%clk 0:02:44]}  Qe7 {[%clk 0:02:41]} 15. Na4 {[%clk 0:02:39]}  Bd7 {[%clk 0:02:41]} 16. Bd4 {[%clk 0:02:35]}  Ne4 {[%clk 0:02:40]} 17. Bf3 {[%clk 0:02:29]}  c5 {[%clk 0:02:30]} 18. Bxe4 {[%clk 0:02:23]}  cxd4 {[%clk 0:02:25]} 19. Bf3 {[%clk 0:02:13]}  dxe3 {[%clk 0:02:20]} 20. Qxd5 {[%clk 0:02:10]}  Bxa4 {[%clk 0:02:03]} 21. bxa4 {[%clk 0:02:08]}  Rad8 {[%clk 0:02:02]} 22. Qf5 {[%clk 0:01:53]}  g6 {[%clk 0:01:53]} 23. Qc2 {[%clk 0:01:44]}  Bf4 {[%clk 0:01:40]} 24. Rb1 {[%clk 0:00:17]}  exf2+ {[%clk 0:01:36]} 25. Rxf2 {[%clk 0:00:12]}  Be3 {[%clk 0:01:35]} 26. Kh1 {[%clk 0:00:09]}  Bxf2 {[%clk 0:01:31]} 27. Qxf2 {[%clk 0:00:10]}  Qe3 {[%clk 0:01:31]} 28. Qf1 {[%clk 0:00:10]}  Rd2 {[%clk 0:01:26]} 29. h3 {[%clk 0:00:05]}  Rxa2 {[%clk 0:01:22]} 30. Bd5 {[%clk 0:00:03]}  Rf2 {[%clk 0:01:19]} 31. Qc4 {[%clk 0:00:03]}  Qe2 {[%clk 0:01:14]} 32. Qc7 {[%clk 0:00:01]}  Rf1+ {[%clk 0:01:07]} 33. Rxf1 {[%clk 0:00:01]}  Qxf1+ {[%clk 0:01:08]} 34. Kh2 {[%clk 0:00:02]}  Qf5 {[%clk 0:01:07]} 0-1


[Site "https://www.chess.com"]

[Event "Titled Tuesday Blitz October 04 Late 2022"]
[White "Hasangatin, Ramil"]
[Black "Demidov, Mikhail"]
[WhiteFideId "4122160"]
[BlackFideId "4197143"]
[WhiteElo "2358"]
[BlackElo "2520"]
[Result "0-1"]
[Round "04"]
[TimeControl "180+1"]
[Date "2022.10.04"]
[WhiteClock "0:00:01"]
[BlackClock "0:00:08"]

1. d4 {[%clk 0:02:59]}  g6 {[%clk 0:02:57]} 2. e4 {[%clk 0:02:59]}  Bg7 {[%clk 0:02:58]} 3. Nc3 {[%clk 0:02:59]}  d6 {[%clk 0:02:57]} 4. Be3 {[%clk 0:02:58]}  a6 {[%clk 0:02:57]} 5. a4 {[%clk 0:02:57]}  Nc6 {[%clk 0:02:55]} 6. Nf3 {[%clk 0:02:54]}  Nf6 {[%clk 0:02:51]} 7. d5 {[%clk 0:02:54]}  Na7 {[%clk 0:02:50]} 8. Be2 {[%clk 0:02:45]}  O-O {[%clk 0:02:49]} 9. O-O {[%clk 0:02:44]}  c6 {[%clk 0:02:48]} 10. h3 {[%clk 0:02:37]}  Bd7 {[%clk 0:02:45]} 11. Nd4 {[%clk 0:02:18]}  Qc7 {[%clk 0:02:39]} 12. Bf3 {[%clk 0:02:11]}  c5 {[%clk 0:02:35]} 13. Nde2 {[%clk 0:02:09]}  b5 {[%clk 0:02:35]} 14. axb5 {[%clk 0:02:08]}  axb5 {[%clk 0:02:35]} 15. e5 {[%clk 0:02:03]}  dxe5 {[%clk 0:02:33]} 16. d6 {[%clk 0:02:03]}  exd6 {[%clk 0:02:33]} 17. Bxa8 {[%clk 0:02:02]}  Rxa8 {[%clk 0:02:34]} 18. b4 {[%clk 0:01:42]}  Rc8 {[%clk 0:02:06]} 19. bxc5 {[%clk 0:01:37]}  dxc5 {[%clk 0:02:05]} 20. Ng3 {[%clk 0:01:08]}  e4 {[%clk 0:01:46]} 21. Ncxe4 {[%clk 0:01:05]}  Nxe4 {[%clk 0:01:35]} 22. Nxe4 {[%clk 0:01:06]}  Bf5 {[%clk 0:01:29]} 23. Nxc5 {[%clk 0:00:56]}  Bxa1 {[%clk 0:01:27]} 24. Qxa1 {[%clk 0:00:56]}  Nc6 {[%clk 0:01:27]} 25. Rd1 {[%clk 0:00:47]}  Qe5 {[%clk 0:01:23]} 26. Qa6 {[%clk 0:00:43]}  h5 {[%clk 0:00:53]} 27. Nd7 {[%clk 0:00:42]}  Bxd7 {[%clk 0:00:43]} 28. Rxd7 {[%clk 0:00:41]}  Qe8 {[%clk 0:00:44]} 29. Rd5 {[%clk 0:00:29]}  Nb4 {[%clk 0:00:43]} 30. Qd6 {[%clk 0:00:27]}  Nxd5 {[%clk 0:00:41]} 31. Qxd5 {[%clk 0:00:28]}  Rxc2 {[%clk 0:00:39]} 32. Qg5 {[%clk 0:00:22]}  b4 {[%clk 0:00:34]} 33. Bd4 {[%clk 0:00:20]}  Kh7 {[%clk 0:00:27]} 34. Qf6 {[%clk 0:00:19]}  Qf8 {[%clk 0:00:25]} 35. g4 {[%clk 0:00:16]}  Rd2 {[%clk 0:00:20]} 36. gxh5 {[%clk 0:00:11]}  Qg8 {[%clk 0:00:20]} 37. Kh2 {[%clk 0:00:06]}  Rxd4 {[%clk 0:00:16]} 38. hxg6+ {[%clk 0:00:06]}  Qxg6 {[%clk 0:00:16]} 39. Qxd4 {[%clk 0:00:07]}  b3 {[%clk 0:00:15]} 40. Qh4+ {[%clk 0:00:06]}  Kg8 {[%clk 0:00:15]} 41. Qd8+ {[%clk 0:00:06]}  Kh7 {[%clk 0:00:14]} 42. Qh4+ {[%clk 0:00:06]}  Kg7 {[%clk 0:00:13]} 43. Qd4+ {[%clk 0:00:05]}  f6 {[%clk 0:00:13]} 44. Qb6 {[%clk 0:00:04]}  Qd3 {[%clk 0:00:11]} 45. Qc7+ {[%clk 0:00:03]}  Kg6 {[%clk 0:00:10]} 46. Qb8 {[%clk 0:00:02]}  Qc4 {[%clk 0:00:08]} 47. Qe8+ {[%clk 0:00:01]}  Kf5 {[%clk 0:00:08]} 0-1


[Site "https://www.chess.com"]

[Event "Titled Tuesday Blitz October 04 Late 2022"]
[White "Ibarra Jerez, Jose Carlos"]
[Black "Nakamura, Hikaru"]
[WhiteFideId "2226332"]
[BlackFideId "2016192"]
[WhiteElo "2627"]
[BlackElo "2909"]
[Result "0-1"]
[Round "04"]
[TimeControl "180+1"]
[Date "2022.10.04"]
[WhiteClock "0:00:04"]
[BlackClock "0:00:14"]

1. e4 {[%clk 0:03:00]}  c6 {[%clk 0:02:57]} 2. Nf3 {[%clk 0:03:00]}  d5 {[%clk 0:02:57]} 3. d3 {[%clk 0:03:00]}  Bg4 {[%clk 0:02:57]} 4. h3 {[%clk 0:03:00]}  Bh5 {[%clk 0:02:57]} 5. Qe2 {[%clk 0:02:51]}  Nd7 {[%clk 0:02:55]} 6. g4 {[%clk 0:02:38]}  dxe4 {[%clk 0:02:47]} 7. dxe4 {[%clk 0:02:37]}  Bg6 {[%clk 0:02:47]} 8. Nh4 {[%clk 0:02:29]}  e5 {[%clk 0:02:43]} 9. Nf5 {[%clk 0:02:26]}  Nc5 {[%clk 0:02:35]} 10. Bg2 {[%clk 0:02:22]}  Ne6 {[%clk 0:02:35]} 11. O-O {[%clk 0:02:17]}  Bc5 {[%clk 0:02:14]} 12. Rd1 {[%clk 0:02:08]}  Qc7 {[%clk 0:02:13]} 13. Qc4 {[%clk 0:01:54]}  Qb6 {[%clk 0:02:03]} 14. Qf1 {[%clk 0:01:31]}  Nf6 {[%clk 0:01:20]} 15. Nd2 {[%clk 0:01:29]}  O-O {[%clk 0:01:16]} 16. Nc4 {[%clk 0:01:26]}  Qc7 {[%clk 0:01:16]} 17. a4 {[%clk 0:01:25]}  b5 {[%clk 0:01:09]} 18. axb5 {[%clk 0:01:23]}  cxb5 {[%clk 0:01:09]} 19. Nce3 {[%clk 0:01:24]}  Nf4 {[%clk 0:01:08]} 20. Qxb5 {[%clk 0:01:18]}  Rab8 {[%clk 0:01:03]} 21. Qf1 {[%clk 0:01:15]}  Rfd8 {[%clk 0:00:58]} 22. Nd5 {[%clk 0:00:53]}  N4xd5 {[%clk 0:00:44]} 23. exd5 {[%clk 0:00:52]}  Bxf5 {[%clk 0:00:44]} 24. gxf5 {[%clk 0:00:52]}  e4 {[%clk 0:00:45]} 25. Ra4 {[%clk 0:00:42]}  Qe5 {[%clk 0:00:42]} 26. Bg5 {[%clk 0:00:36]}  Qxf5 {[%clk 0:00:22]} 27. Bxf6 {[%clk 0:00:33]}  Qxf6 {[%clk 0:00:23]} 28. Rxe4 {[%clk 0:00:23]}  Rxb2 {[%clk 0:00:23]} 29. Qe2 {[%clk 0:00:18]}  g6 {[%clk 0:00:23]} 30. Rd3 {[%clk 0:00:09]}  Rb1+ {[%clk 0:00:22]} 31. Bf1 {[%clk 0:00:09]}  Qg5+ {[%clk 0:00:20]} 32. Rg4 {[%clk 0:00:09]}  Qf5 {[%clk 0:00:19]} 33. c4 {[%clk 0:00:06]}  a5 {[%clk 0:00:15]} 34. Rf3 {[%clk 0:00:06]}  Qd7 {[%clk 0:00:14]} 35. Rgf4 {[%clk 0:00:06]}  Re8 {[%clk 0:00:14]} 36. Qd3 {[%clk 0:00:02]}  Ree1 {[%clk 0:00:13]} 37. Rxf7 {[%clk 0:00:03]}  Rxf1+ {[%clk 0:00:14]} 38. Kg2 {[%clk 0:00:03]}  Rg1+ {[%clk 0:00:14]} 39. Kh2 {[%clk 0:00:04]}  Bd6+ {[%clk 0:00:14]} 0-1


[Site "https://www.chess.com"]

[Event "Titled Tuesday Blitz October 04 Late 2022"]
[White "Melikyan, Gnel"]
[Black "Fawzy, Adham"]
[WhiteFideId "54109990"]
[BlackFideId "10613129"]
[WhiteElo "2138"]
[BlackElo "2541"]
[Result "1-0"]
[Round "04"]
[TimeControl "180+1"]
[Date "2022.10.04"]
[WhiteClock "0:00:13"]
[BlackClock "0:00:31"]

1. e4 {[%clk 0:03:00]}  c5 {[%clk 0:03:00]} 2. Nf3 {[%clk 0:03:00]}  Nc6 {[%clk 0:02:57]} 3. Bb5 {[%clk 0:03:00]}  g6 {[%clk 0:02:57]} 4. Bxc6 {[%clk 0:02:59]}  bxc6 {[%clk 0:02:57]} 5. d4 {[%clk 0:02:57]}  cxd4 {[%clk 0:02:51]} 6. Qxd4 {[%clk 0:02:57]}  f6 {[%clk 0:02:48]} 7. O-O {[%clk 0:02:56]}  d6 {[%clk 0:02:48]} 8. c4 {[%clk 0:02:54]}  e5 {[%clk 0:02:48]} 9. Qd3 {[%clk 0:02:54]}  Be6 {[%clk 0:02:47]} 10. Nc3 {[%clk 0:02:54]}  Nh6 {[%clk 0:02:47]} 11. Bxh6 {[%clk 0:02:48]}  Bxh6 {[%clk 0:02:48]} 12. Rfd1 {[%clk 0:02:48]}  Bf8 {[%clk 0:02:39]} 13. b4 {[%clk 0:02:42]}  a6 {[%clk 0:02:31]} 14. a4 {[%clk 0:02:41]}  Be7 {[%clk 0:02:31]} 15. b5 {[%clk 0:02:41]}  axb5 {[%clk 0:02:31]} 16. axb5 {[%clk 0:02:37]}  Rxa1 {[%clk 0:02:27]} 17. Rxa1 {[%clk 0:02:37]}  cxb5 {[%clk 0:02:27]} 18. cxb5 {[%clk 0:02:28]}  O-O {[%clk 0:02:28]} 19. Nd5 {[%clk 0:02:27]}  f5 {[%clk 0:02:27]} 20. Ra7 {[%clk 0:02:21]}  Bg5 {[%clk 0:02:27]} 21. h3 {[%clk 0:01:55]}  Kh8 {[%clk 0:02:10]} 22. b6 {[%clk 0:01:13]}  fxe4 {[%clk 0:02:00]} 23. Qxe4 {[%clk 0:01:12]}  Bxd5 {[%clk 0:02:00]} 24. Qxd5 {[%clk 0:01:11]}  Qxb6 {[%clk 0:01:59]} 25. Rb7 {[%clk 0:01:05]}  Qd8 {[%clk 0:01:59]} 26. Qe6 {[%clk 0:00:51]}  Bf6 {[%clk 0:01:32]} 27. Rd7 {[%clk 0:00:47]}  Qe8 {[%clk 0:01:32]} 28. Qxe8 {[%clk 0:00:37]}  Rxe8 {[%clk 0:01:31]} 29. Rxd6 {[%clk 0:00:37]}  Kg7 {[%clk 0:01:32]} 30. Nd2 {[%clk 0:00:35]}  e4 {[%clk 0:01:30]} 31. Rd7+ {[%clk 0:00:35]}  Kg8 {[%clk 0:01:28]} 32. Nc4 {[%clk 0:00:31]}  Bg5 {[%clk 0:01:27]} 33. Rd5 {[%clk 0:00:18]}  Bf4 {[%clk 0:01:22]} 34. g3 {[%clk 0:00:17]}  e3 {[%clk 0:01:21]} 35. Kf1 {[%clk 0:00:14]}  Bh6 {[%clk 0:01:01]} 36. f4 {[%clk 0:00:14]}  e2+ {[%clk 0:01:02]} 37. Ke1 {[%clk 0:00:14]}  Bg7 {[%clk 0:01:03]} 38. Rd3 {[%clk 0:00:08]}  h5 {[%clk 0:01:03]} 39. h4 {[%clk 0:00:04]}  Re4 {[%clk 0:01:00]} 40. Ne3 {[%clk 0:00:04]}  Ra4 {[%clk 0:00:56]} 41. Kxe2 {[%clk 0:00:04]}  Ra2+ {[%clk 0:00:57]} 42. Rd2 {[%clk 0:00:05]}  Ra3 {[%clk 0:00:57]} 43. Kf3 {[%clk 0:00:05]}  Bf8 {[%clk 0:00:57]} 44. Rc2 {[%clk 0:00:04]}  Bg7 {[%clk 0:00:57]} 45. Rd2 {[%clk 0:00:05]}  Bf8 {[%clk 0:00:55]} 46. Ke4 {[%clk 0:00:05]}  Kf7 {[%clk 0:00:54]} 47. Rd7+ {[%clk 0:00:05]}  Ke6 {[%clk 0:00:54]} 48. Rd4 {[%clk 0:00:05]}  Bc5 {[%clk 0:00:53]} 49. Rd3 {[%clk 0:00:05]}  Ra4+ {[%clk 0:00:49]} 50. Kf3 {[%clk 0:00:06]}  Ra2 {[%clk 0:00:50]} 51. Nd1 {[%clk 0:00:05]}  Rc2 {[%clk 0:00:46]} 52. Rc3 {[%clk 0:00:05]}  Rd2 {[%clk 0:00:42]} 53. Rxc5 {[%clk 0:00:04]}  Rxd1 {[%clk 0:00:43]} 54. Rc6+ {[%clk 0:00:05]}  Kf5 {[%clk 0:00:43]} 55. Rc5+ {[%clk 0:00:05]}  Kf6 {[%clk 0:00:44]} 56. Rc3 {[%clk 0:00:04]}  Rf1+ {[%clk 0:00:44]} 57. Kg2 {[%clk 0:00:05]}  Ra1 {[%clk 0:00:44]} 58. Re3 {[%clk 0:00:05]}  Ra2+ {[%clk 0:00:44]} 59. Kf3 {[%clk 0:00:06]}  Rb2 {[%clk 0:00:44]} 60. Re4 {[%clk 0:00:07]}  Rb3+ {[%clk 0:00:44]} 61. Re3 {[%clk 0:00:07]}  Rb2 {[%clk 0:00:45]} 62. Re4 {[%clk 0:00:08]}  Rb3+ {[%clk 0:00:45]} 63. Kf2 {[%clk 0:00:08]}  Rb2+ {[%clk 0:00:46]} 64. Re2 {[%clk 0:00:09]}  Rb3 {[%clk 0:00:46]} 65. Rd2 {[%clk 0:00:10]}  Rc3 {[%clk 0:00:47]} 66. Rd6+ {[%clk 0:00:10]}  Kf5 {[%clk 0:00:47]} 67. Rd5+ {[%clk 0:00:10]}  Kf6 {[%clk 0:00:47]} 68. Rg5 {[%clk 0:00:10]}  Ra3 {[%clk 0:00:47]} 69. Kg1 {[%clk 0:00:11]}  Rb3 {[%clk 0:00:47]} 70. Kg2 {[%clk 0:00:11]}  Rb2+ {[%clk 0:00:48]} 71. Kh3 {[%clk 0:00:11]}  Rb1 {[%clk 0:00:47]} 72. f5 {[%clk 0:00:12]}  gxf5 {[%clk 0:00:45]} 73. Rxh5 {[%clk 0:00:12]}  Rb3 {[%clk 0:00:40]} 74. Rh8 {[%clk 0:00:12]}  f4 {[%clk 0:00:38]} 75. Rf8+ {[%clk 0:00:13]}  Kg7 {[%clk 0:00:36]} 76. Rxf4 {[%clk 0:00:13]}  Rb5 {[%clk 0:00:37]} 77. Rg4+ {[%clk 0:00:14]}  Kh6 {[%clk 0:00:37]} 78. Re4 {[%clk 0:00:14]}  Rb2 {[%clk 0:00:37]} 79. Re6+ {[%clk 0:00:14]}  Kg7 {[%clk 0:00:37]} 80. h5 {[%clk 0:00:14]}  Kf7 {[%clk 0:00:36]} 81. Rg6 {[%clk 0:00:14]}  Rb5 {[%clk 0:00:35]} 82. Kh4 {[%clk 0:00:14]}  Rb1 {[%clk 0:00:36]} 83. g4 {[%clk 0:00:14]}  Rh1+ {[%clk 0:00:36]} 84. Kg5 {[%clk 0:00:14]}  Rb1 {[%clk 0:00:37]} 85. Kh6 {[%clk 0:00:15]}  Rb8 {[%clk 0:00:35]} 86. Rg7+ {[%clk 0:00:14]}  Kf6 {[%clk 0:00:35]} 87. g5+ {[%clk 0:00:14]}  Ke6 {[%clk 0:00:36]} 88. g6 {[%clk 0:00:14]}  Kf5 {[%clk 0:00:31]} 89. Rf7+ {[%clk 0:00:14]}  Kg4 {[%clk 0:00:32]} 90. g7 {[%clk 0:00:12]}  Rb6+ {[%clk 0:00:31]} 91. Kh7 {[%clk 0:00:12]}  Kxh5 {[%clk 0:00:32]} 92. g8=Q {[%clk 0:00:13]}  Rh6+ {[%clk 0:00:30]} 93. Kg7 {[%clk 0:00:13]}  Rg6+ {[%clk 0:00:31]} 94. Kf8 {[%clk 0:00:13]} 1-0


[Site "https://www.chess.com"]

[Event "Titled Tuesday Blitz October 04 Late 2022"]
[White "Naroditsky, Daniel"]
[Black "Postnikov, Daniil"]
[WhiteFideId "2026961"]
[BlackFideId "4166329"]
[WhiteElo "2628"]
[BlackElo "2261"]
[Result "1-0"]
[Round "04"]
[TimeControl "180+1"]
[Date "2022.10.04"]
[WhiteClock "0:00:11"]
[BlackClock "0:00:14"]

1. c4 {[%clk 0:02:54]}  e5 {[%clk 0:02:58]} 2. Nc3 {[%clk 0:02:54]}  Bb4 {[%clk 0:02:57]} 3. Nd5 {[%clk 0:02:53]}  Be7 {[%clk 0:02:57]} 4. d4 {[%clk 0:02:53]}  exd4 {[%clk 0:02:49]} 5. Qxd4 {[%clk 0:02:54]}  Nf6 {[%clk 0:02:49]} 6. Nxe7 {[%clk 0:02:52]}  Qxe7 {[%clk 0:02:48]} 7. Bg5 {[%clk 0:02:39]}  Nc6 {[%clk 0:02:48]} 8. Qc3 {[%clk 0:02:35]}  d6 {[%clk 0:02:25]} 9. e3 {[%clk 0:02:23]}  Bf5 {[%clk 0:02:22]} 10. Nf3 {[%clk 0:02:19]}  O-O-O {[%clk 0:02:20]} 11. Be2 {[%clk 0:02:17]}  Qe6 {[%clk 0:02:16]} 12. Bxf6 {[%clk 0:02:11]}  gxf6 {[%clk 0:02:15]} 13. b4 {[%clk 0:02:04]}  Rhg8 {[%clk 0:02:07]} 14. b5 {[%clk 0:02:03]}  Ne5 {[%clk 0:02:00]} 15. Nd4 {[%clk 0:02:03]}  Qd7 {[%clk 0:01:59]} 16. g3 {[%clk 0:01:28]}  Bh3 {[%clk 0:01:42]} 17. O-O-O {[%clk 0:01:18]}  Kb8 {[%clk 0:01:19]} 18. Rd2 {[%clk 0:01:16]}  c5 {[%clk 0:01:02]} 19. bxc6 {[%clk 0:01:10]}  Nxc6 {[%clk 0:01:02]} 20. Bf3 {[%clk 0:01:04]}  Ne5 {[%clk 0:00:59]} 21. Bd5 {[%clk 0:01:04]}  Rc8 {[%clk 0:00:53]} 22. Rc2 {[%clk 0:00:39]}  Nxc4 {[%clk 0:00:41]} 23. Bxc4 {[%clk 0:00:36]}  d5 {[%clk 0:00:40]} 24. Bb5 {[%clk 0:00:35]}  Rxc3 {[%clk 0:00:35]} 25. Bxd7 {[%clk 0:00:34]}  Rxc2+ {[%clk 0:00:36]} 26. Kxc2 {[%clk 0:00:33]}  Bxd7 {[%clk 0:00:37]} 27. Kd2 {[%clk 0:00:31]}  Rc8 {[%clk 0:00:34]} 28. Rb1 {[%clk 0:00:32]}  Kc7 {[%clk 0:00:28]} 29. h4 {[%clk 0:00:30]}  a6 {[%clk 0:00:27]} 30. Rb4 {[%clk 0:00:24]}  b5 {[%clk 0:00:25]} 31. Ne2 {[%clk 0:00:23]}  Kd6 {[%clk 0:00:24]} 32. Rf4 {[%clk 0:00:24]}  Ke5 {[%clk 0:00:21]} 33. Nd4 {[%clk 0:00:24]}  a5 {[%clk 0:00:18]} 34. Nf3+ {[%clk 0:00:23]}  Ke6 {[%clk 0:00:17]} 35. Nd4+ {[%clk 0:00:24]}  Ke7 {[%clk 0:00:17]} 36. Nb3 {[%clk 0:00:15]}  a4 {[%clk 0:00:11]} 37. Nc1 {[%clk 0:00:15]}  Rc4 {[%clk 0:00:10]} 38. Nd3 {[%clk 0:00:13]}  Rxf4 {[%clk 0:00:06]} 39. Nxf4 {[%clk 0:00:12]}  Kd6 {[%clk 0:00:06]} 40. Kc3 {[%clk 0:00:12]}  Kc5 {[%clk 0:00:06]} 41. Nd3+ {[%clk 0:00:13]}  Kd6 {[%clk 0:00:07]} 42. Kd4 {[%clk 0:00:09]}  Be8 {[%clk 0:00:06]} 43. a3 {[%clk 0:00:09]}  Bc6 {[%clk 0:00:06]} 44. Nb4 {[%clk 0:00:09]}  Bb7 {[%clk 0:00:07]} 45. Na2 {[%clk 0:00:07]}  Bc6 {[%clk 0:00:06]} 46. Nc3 {[%clk 0:00:07]}  h5 {[%clk 0:00:05]} 47. f3 {[%clk 0:00:04]}  f5 {[%clk 0:00:04]} 48. f4 {[%clk 0:00:04]}  f6 {[%clk 0:00:04]} 49. Na2 {[%clk 0:00:04]}  Bd7 {[%clk 0:00:03]} 50. Nb4 {[%clk 0:00:04]}  Bc6 {[%clk 0:00:03]} 51. Nd3 {[%clk 0:00:04]}  Ba8 {[%clk 0:00:02]} 52. Ne1 {[%clk 0:00:04]}  Bc6 {[%clk 0:00:03]} 53. Nc2 {[%clk 0:00:05]}  Bd7 {[%clk 0:00:03]} 54. Kc3 {[%clk 0:00:06]}  Bc6 {[%clk 0:00:04]} 55. Kb4 {[%clk 0:00:06]}  Bd7 {[%clk 0:00:04]} 56. Nd4 {[%clk 0:00:06]}  Kc7 {[%clk 0:00:04]} 57. Kc5 {[%clk 0:00:06]}  b4 {[%clk 0:00:04]} 58. Kxb4 {[%clk 0:00:06]}  Kd6 {[%clk 0:00:04]} 59. Nb5+ {[%clk 0:00:04]}  Bxb5 {[%clk 0:00:04]} 60. Kxb5 {[%clk 0:00:05]}  d4 {[%clk 0:00:05]} 61. exd4 {[%clk 0:00:05]}  Kd5 {[%clk 0:00:06]} 62. Kxa4 {[%clk 0:00:06]}  Kxd4 {[%clk 0:00:07]} 63. Kb5 {[%clk 0:00:06]}  Ke3 {[%clk 0:00:08]} 64. a4 {[%clk 0:00:07]}  Kf3 {[%clk 0:00:09]} 65. a5 {[%clk 0:00:08]}  Kxg3 {[%clk 0:00:10]} 66. a6 {[%clk 0:00:09]}  Kxh4 {[%clk 0:00:11]} 67. a7 {[%clk 0:00:09]}  Kg3 {[%clk 0:00:11]} 68. a8=Q {[%clk 0:00:10]}  h4 {[%clk 0:00:12]} 69. Qh1 {[%clk 0:00:11]}  h3 {[%clk 0:00:13]} 70. Kc4 {[%clk 0:00:11]}  Kxf4 {[%clk 0:00:14]} 71. Qxh3 {[%clk 0:00:11]} 1-0


[Site "https://www.chess.com"]